bitfinex/quotes_BTCUSD_20250916
["timestamp","ask_amount","ask_price","bid_price","bid_amount"]
[1758064732899,0.58358959,117000.0,116990.0,0.17505578]
[1758064733100,0.58358959,117000.0,116990.0,0.270661]
[1758064734195,0.58368959,117000.0,116990.0,0.270661]
[1758064734963,0.41274942,117000.0,116990.0,0.44161578]
[1758064735091,0.58368959,117000.0,116990.0,0.44161578]
[1758064735706,0.58368959,117000.0,116990.0,0.270661]
[1758064735908,0.58368959,117000.0,116990.0,0.44161578]
[1758064737391,0.58368959,117000.0,116990.0,0.270661]
[1758064738017,0.58368959,117000.0,116990.0,0.44161578]
[1758064738254,0.58368959,117000.0,116990.0,0.270661]
[1758064740026,0.62209129,117000.0,116990.0,0.270661]
[1758064741310,0.67209129,117000.0,116990.0,0.270661]
[1758064741790,1.01660922,117000.0,116990.0,0.004101]
[1758064741932,1.44311067,117000.0,116990.0,0.004101]
[1758064742149,1.47326257,117000.0,116990.0,0.004101]
[1758064742340,1.47326257,117000.0,116990.0,0.004001]
[1758064743122,1.47226257,117000.0,116990.0,0.004001]
[1758064743332,1.55434257,117000.0,116990.0,0.004001]
[1758064743537,1.55834257,117000.0,116990.0,0.004001]
[1758064744131,1.70484402,117000.0,116990.0,0.004001]
[1758064744766,1.72085158,117000.0,116990.0,0.004001]
[1758064745211,1.70684402,117000.0,116990.0,0.004001]
[1758064745636,1.70484402,117000.0,116990.0,0.004001]
[1758064746013,1.70684402,117000.0,116990.0,0.004001]
[1758064746604,1.75684402,117000.0,116990.0,0.004001]
[1758064746804,2.02344402,117000.0,116990.0,0.004001]
[1758064747466,2.36796195,117000.0,116990.0,0.004001]
[1758064747828,2.38395691,117000.0,116990.0,0.004001]
[1758064748052,2.38395702,117000.0,116990.0,0.004001]
[1758064748252,0.69110668,116990.0,116980.0,0.00014094]
[1758064748527,1.56914051,116990.0,116980.0,0.00014094]
[1758064748660,1.57125051,116990.0,116980.0,0.00014094]
[1758064748860,1.86455051,116990.0,116980.0,0.00014094]
[1758064749207,1.86465051,116990.0,116980.0,0.00014094]
[1758064749394,1.86465051,116990.0,116980.0,1e-08]
[1758064749395,1.86464241,116990.0,116980.0,1e-08]
[1758064749595,1.87263757,116990.0,116980.0,1e-08]
[1758064750149,1.87463757,116990.0,116980.0,1e-08]
[1758064750354,1.87263757,116990.0,116980.0,1e-08]
[1758064750575,1.87063757,116990.0,116980.0,1e-08]
[1758064750780,1.87563757,116990.0,116980.0,1e-08]
[1758064751671,1.60903757,116990.0,116980.0,1e-08]
[1758064751879,1.87563757,116990.0,116980.0,1e-08]
[1758064752438,1.87863757,116990.0,116980.0,1e-08]
[1758064752761,1.61203757,116990.0,116980.0,1e-08]
[1758064753011,1.93923385,116990.0,116980.0,1e-08]
[1758064753396,1.94323385,116990.0,116980.0,1e-08]
[1758064754808,1.96892271,116990.0,116980.0,1e-08]
[1758064763438,2.41552271,116990.0,116980.0,1e-08]
[1758064764537,2.14888271,116990.0,116980.0,1e-08]
[1758064765077,2.41556271,116990.0,116980.0,1e-08]
[1758064765677,0.59566846,116960.0,116950.0,0.07320116]
[1758064765882,1.04261145,116960.0,116950.0,0.07334239]
[1758064766090,1.04261145,116960.0,116950.0,0.00414123]
[1758064766309,1.07152145,116960.0,116950.0,0.00414123]
[1758064766521,1.09721031,116960.0,116950.0,0.00414123]
[1758064767378,1.09720674,116960.0,116950.0,0.00414123]
[1758064768005,1.83372467,116960.0,116950.0,0.00414123]
[1758064768484,0.56102787,116940.0,116930.0,0.004]
[1758064768703,1.70144437,116940.0,116930.0,0.00414125]
[1758064769010,1.82077639,116940.0,116930.0,0.00414125]
[1758064769409,1.82087639,116940.0,116930.0,0.00414125]
[1758064769834,1.82501764,116940.0,116930.0,0.00414125]
[1758064769963,1.82501764,116940.0,116930.0,0.00614125]
[1758064771265,1.82501764,116940.0,116930.0,0.00414125]
[1758064771520,1.82601764,116940.0,116930.0,0.00414125]
[1758064771724,1.88601764,116940.0,116930.0,0.00414125]
[1758064773514,1.93601764,116940.0,116930.0,0.00414125]
[1758064776158,2.28053557,116940.0,116930.0,0.00414125]
[1758064776457,1.93601764,116940.0,116930.0,0.00414125]
[1758064777261,2.28053557,116940.0,116930.0,0.00414125]
[1758064777982,1.93601764,116940.0,116930.0,0.00414125]
[1758064780594,2.28053557,116940.0,116930.0,0.00414125]
[1758064784032,1.93601764,116940.0,116930.0,0.00414125]
[1758064784248,2.28053557,116940.0,116930.0,0.00414125]
[1758064786211,2.31068747,116940.0,116930.0,0.00414125]
[1758064786421,0.61107176,116910.0,116900.0,0.0001]
[1758064786628,0.27108639,116900.0,116890.0,0.06930116]
[1758064786820,0.98692274,116900.0,116890.0,0.00218068]
[1758064787030,1.01127274,116900.0,116890.0,0.00218068]
[1758064787208,1.03697225,116900.0,116890.0,0.00218068]
[1758064787585,1.03707225,116900.0,116890.0,0.00218068]
[1758064788003,1.046007,116900.0,116890.0,0.00218068]
[1758064788204,1.046007,116900.0,116890.0,0.00198068]
[1758064789055,1.043067,116900.0,116890.0,0.00198068]
[1758064789230,1.043067,116900.0,116890.0,0.00398068]
[1758064789440,1.043067,116900.0,116890.0,0.00498068]
[1758064790766,1.38306741,116900.0,116890.0,0.00498068]
[1758064790968,1.11634741,116900.0,116890.0,0.00498068]
[1758064791204,1.38306741,116900.0,116890.0,0.00498068]
[1758064791406,1.11634741,116900.0,116890.0,0.00498068]
[1758064791615,1.38306741,116900.0,116890.0,0.00508068]
[1758064792509,1.35660741,116900.0,116890.0,0.00829068]
[1758064793144,1.08988741,116900.0,116890.0,0.00829068]
[1758064793458,1.35664741,116900.0,116890.0,0.00829068]
[1758064794072,1.38100741,116900.0,116890.0,0.00508068]
[1758064795253,1.35664741,116900.0,116890.0,0.00508068]
[1758064795480,1.35664741,116900.0,116890.0,0.00821068]
[1758064796043,1.35664741,116900.0,116890.0,0.00508068]
[1758064798680,1.35664741,116900.0,116890.0,0.00821068]
[1758064800050,1.3189294,116900.0,116890.0,0.00508068]
[1758064800493,1.3432894,116900.0,116890.0,0.00508068]
[1758064801215,1.34544237,116900.0,116890.0,0.00508068]
[1758064801430,1.34845237,116900.0,116890.0,0.0031]
[1758064803023,1.34845237,116900.0,116890.0,0.00514]
[1758064803258,1.34544237,116900.0,116890.0,0.00514]
[1758064804678,1.3454424,116900.0,116890.0,0.00514]
[1758064806544,0.14778464,116900.0,116890.0,0.48625095]
[1758064806782,0.12208513,116900.0,116890.0,0.48625095]
[1758064807444,0.07198513,116900.0,116890.0,0.48625095]
[1758064808418,0.02198513,116900.0,116890.0,0.48625095]
[1758064808614,0.07198513,116900.0,116890.0,0.75301095]
[1758064808828,0.07198794,116900.0,116890.0,0.48625095]
[1758064809037,0.07198794,116900.0,116890.0,0.75301095]
[1758064809448,0.07198794,116900.0,116890.0,0.6549124]
[1758064809651,0.02198794,116900.0,116890.0,0.9216724]
[1758064809859,0.07198794,116900.0,116890.0,0.9216724]
[1758064810273,0.07198794,116900.0,116890.0,0.6549124]
[1758064810460,0.07198794,116900.0,116890.0,0.9216724]
[1758064810663,0.02198794,116900.0,116890.0,0.9216724]
[1758064810884,0.07198794,116900.0,116890.0,0.9216324]
[1758064812358,0.07198794,116900.0,116890.0,0.6549124]
[1758064812566,0.05599877,116900.0,116890.0,0.6549124]
[1758064812770,0.07201075,116900.0,116890.0,0.6549124]
[1758064812974,0.07201075,116900.0,116890.0,0.9216324]
[1758064813687,0.02201075,116900.0,116890.0,0.9216324]
[1758064813924,0.07201075,116900.0,116890.0,0.9216324]
[1758064815275,0.02201075,116900.0,116890.0,0.9216324]
[1758064815481,0.07202952,116900.0,116890.0,0.9216324]
[1758064815785,0.02202952,116900.0,116890.0,0.6549124]
[1758064815993,0.02202952,116900.0,116890.0,0.9216324]
[1758064816839,0.01602147,116900.0,116890.0,0.9216324]
[1758064817224,0.01602147,116900.0,116890.0,0.9206324]
[1758064817421,0.01602147,116900.0,116890.0,1.2606324]
[1758064817775,0.01602147,116900.0,116890.0,1.2636324]
[1758064818155,0.01602147,116900.0,116890.0,1.2616324]
[1758064818368,0.01602147,116900.0,116890.0,1.2646324]
[1758064818772,0.01602147,116900.0,116890.0,0.95483248]
[1758064818969,0.01602147,116900.0,116890.0,1.2666324]
[1758064819223,0.05600805,116910.0,116900.0,0.17108639]
[1758064819366,0.07204394,116910.0,116900.0,0.17631639]
[1758064819570,0.07204394,116910.0,116900.0,0.44303639]
[1758064819772,0.07204394,116910.0,116900.0,0.44313639]
[1758064819987,0.07204394,116910.0,116900.0,0.17641639]
[1758064820195,0.07204394,116910.0,116900.0,0.44309639]
[1758064820418,0.07204394,116910.0,116900.0,0.44313639]
[1758064820618,0.09342791,116910.0,116900.0,0.44313639]
[1758064821148,0.09342791,116910.0,116900.0,0.17641639]
[1758064821377,0.09342791,116910.0,116900.0,0.44313639]
[1758064821584,0.09342791,116910.0,116900.0,0.17741639]
[1758064821785,0.09342791,116910.0,116900.0,0.44513639]
[1758064824236,0.08741986,116910.0,116900.0,0.44513639]
[1758064825087,0.07138397,116910.0,116900.0,0.44509639]
[1758064826211,0.07138397,116910.0,116900.0,0.75189631]
[1758064826475,0.05,116910.0,116900.0,0.75189631]
[1758064826700,0.05,116910.0,116900.0,0.44509639]
[1758064826919,0.05,116910.0,116900.0,0.75189631]
[1758064827153,0.05,116910.0,116900.0,0.48521631]
[1758064827379,0.05,116910.0,116900.0,0.75189631]
[1758064827792,0.05,116910.0,116900.0,0.48521631]
[1758064827998,0.05,116910.0,116900.0,0.44509639]
[1758064828652,0.102,116910.0,116900.0,0.44188639]
[1758064828874,0.12612,116910.0,116900.0,0.17520639]
[1758064829294,0.30021176,116910.0,116900.0,0.44188639]
[1758064829761,0.30021176,116910.0,116900.0,0.17520639]
[1758064829981,0.30031176,116910.0,116900.0,0.44188639]
[1758064830463,0.60711168,116910.0,116900.0,0.17520639]
[1758064830675,0.60711168,116910.0,116900.0,0.43986639]
[1758064830865,0.30031176,116910.0,116900.0,0.43986639]
[1758064832411,0.69361313,116910.0,116900.0,0.0021]
[1758064832843,0.71931156,116910.0,116900.0,0.0021]
[1758064833801,0.74946346,116910.0,116900.0,0.0021]
[1758064835020,0.74946346,116910.0,116900.0,0.0011]
[1758064835909,0.74946346,116910.0,116900.0,0.0001]
[1758064836601,0.83596491,116910.0,116900.0,0.0001]
[1758064837297,0.52916499,116910.0,116900.0,0.0001]
[1758064837473,0.83596491,116910.0,116900.0,0.0001]
[1758064838951,1.10268491,116910.0,116900.0,0.0001]
[1758064840903,0.83596491,116910.0,116900.0,0.0001]
[1758064841118,1.10268491,116910.0,116900.0,0.0001]
[1758064843503,1.01618346,116910.0,116900.0,0.0001]
[1758064844335,1.35618346,116910.0,116900.0,0.0001]
[1758064844488,0.27108639,116900.0,116890.0,0.0001]
[1758064844677,0.66438776,116900.0,116890.0,0.0001]
[1758064844872,0.69289776,116900.0,116890.0,0.0001]
[1758064845317,0.83525146,116900.0,116890.0,0.0001]
[1758064845520,1.08875001,116900.0,116890.0,0.0001]
[1758064845740,1.08875001,116900.0,116890.0,0.0011]
[1758064846357,1.08875001,116900.0,116890.0,0.001]
[1758064846971,1.35547001,116900.0,116890.0,0.002]
[1758064847447,1.44197146,116900.0,116890.0,0.002]
[1758064849597,1.35506766,116900.0,116890.0,0.002]
[1758064853701,1.08834766,116900.0,116890.0,0.002]
[1758064853908,1.35506766,116900.0,116890.0,0.002]
[1758064854320,1.08834766,116900.0,116890.0,0.002]
[1758064854628,1.35506766,116900.0,116890.0,0.002]
[1758064857169,1.44156911,116900.0,116890.0,0.002]
[1758064857734,1.35506766,116900.0,116890.0,0.002]
[1758064859743,1.12676269,116900.0,116890.0,0.002]
[1758064859943,1.39348269,116900.0,116890.0,0.002]
[1758064861846,1.12676269,116900.0,116890.0,0.002]
[1758064862091,1.39348269,116900.0,116890.0,0.002]
[1758064862515,1.47998414,116900.0,116890.0,0.002]
[1758064864108,1.39348269,116900.0,116890.0,0.002]
[1758064867703,1.39348269,116900.0,116890.0,0.001]
[1758064867908,0.59085058,116890.0,116880.0,0.004]
[1758064868106,1.02580698,116890.0,116880.0,0.00408089]
[1758064868305,1.02794698,116890.0,116880.0,0.00408089]
[1758064868519,1.05071698,116890.0,116880.0,0.00408089]
[1758064868959,1.05081698,116890.0,116880.0,0.00408089]
[1758064869197,1.07752146,116890.0,116880.0,0.00408089]
[1758064870371,1.07852146,116890.0,116880.0,0.00408089]
[1758064870548,1.12852146,116890.0,116880.0,0.00408089]
[1758064871238,1.39524146,116890.0,116880.0,0.00408089]
[1758064872765,1.40381992,116890.0,116880.0,0.00408089]
[1758064874545,1.03259497,116890.0,116880.0,0.00408089]
[1758064874777,1.13385992,116890.0,116880.0,0.00408089]
[1758064874986,1.40057992,116890.0,116880.0,0.00603089]
[1758064875190,1.40381992,116890.0,116880.0,0.00408089]
[1758064882457,1.83553632,116890.0,116880.0,0.00408089]
[1758064884886,1.91769632,116890.0,116880.0,0.00408089]
[1758064894508,1.91773632,116890.0,116880.0,0.00408089]
[1758064896173,1.93375223,116890.0,116880.0,0.00408089]
[1758064896613,2.00685403,116890.0,116880.0,0.00408089]
[1758064896824,1.33129512,116880.0,116870.0,0.0004]
[1758064897042,1.77105802,116880.0,116870.0,0.00086926]
[1758064897259,1.77308802,116880.0,116870.0,0.00086926]
[1758064897586,1.80063802,116880.0,116870.0,0.00086926]
[1758064897645,1.80406609,116880.0,116870.0,0.00086926]
[1758064898002,1.80716609,116880.0,116870.0,0.00086926]
[1758064899333,1.80916609,116880.0,116870.0,0.00086926]
[1758064900268,1.82518672,116880.0,116870.0,0.00086926]
[1758064900655,1.82518674,116880.0,116870.0,0.00086926]
[1758064917857,1.55842674,116880.0,116870.0,0.00086926]
[1758064918039,1.82518674,116880.0,116870.0,0.00086926]
[1758064918234,1.47192529,116880.0,116870.0,0.00086926]
[1758064918492,1.73868529,116880.0,116870.0,0.00086926]
[1758064918729,1.36331844,116880.0,116870.0,0.00289926]
[1758064918967,1.73868529,116880.0,116870.0,0.00289926]
[1758064919200,1.73868529,116880.0,116870.0,0.00086926]
[1758064919434,1.79675147,116880.0,116870.0,0.00086926]
[1758064919625,1.79475147,116880.0,116870.0,0.00086926]
[1758064919882,1.41127988,116880.0,116870.0,0.00086926]
[1758064920070,1.41327988,116880.0,116870.0,0.00086926]
[1758064921516,1.40827988,116880.0,116870.0,0.00086926]
[1758064921736,1.41127988,116880.0,116870.0,0.00086926]
[1758064921953,1.41327988,116880.0,116870.0,0.00289926]
[1758064922165,1.41014988,116880.0,116870.0,0.00289926]
[1758064922386,1.40814988,116880.0,116870.0,0.00289926]
[1758064922804,1.41014988,116880.0,116870.0,0.00289926]
[1758064923847,1.14338988,116880.0,116870.0,0.00289926]
[1758064924065,1.10319157,116880.0,116870.0,0.00289926]
[1758064924274,1.40811988,116880.0,116870.0,0.00289926]
[1758064924607,1.40724988,116880.0,116870.0,0.00289926]
[1758064924819,1.40924988,116880.0,116870.0,0.00289926]
[1758064925654,1.40724988,116880.0,116870.0,0.00289926]
[1758064925865,1.10029157,116880.0,116870.0,0.00289926]
[1758064926075,1.40824988,116880.0,116870.0,0.00289926]
[1758064928398,1.14148988,116880.0,116870.0,0.00289926]
[1758064928611,1.40824988,116880.0,116870.0,0.00289926]
[1758064928859,1.10129157,116880.0,116870.0,0.00289926]
[1758064929065,1.40824988,116880.0,116870.0,0.00289926]
[1758064930053,0.81838392,116880.0,116870.0,0.00606926]
[1758064930276,1.02710059,116880.0,116870.0,0.00606926]
[1758064930488,0.73669824,116880.0,116870.0,0.00606926]
[1758064930704,1.07669824,116880.0,116870.0,0.00606926]
[1758064930921,1.07669875,116880.0,116870.0,0.00606926]
[1758064931129,0.26767118,116880.0,116870.0,0.17719957]
[1758064931344,0.70554685,116880.0,116870.0,0.00606926]
[1758064931563,1.04654685,116880.0,116870.0,0.17719957]
[1758064931787,1.04454685,116880.0,116870.0,0.17719957]
[1758064931998,0.9959492,116880.0,116870.0,0.17719957]
[1758064932437,0.99695017,116880.0,116870.0,0.17719957]
[1758064932872,0.99595017,116880.0,116870.0,0.17719957]
[1758064933535,0.99395017,116880.0,116870.0,0.17719957]
[1758064933759,1.04454782,116880.0,116870.0,0.17719957]
[1758064933988,1.04354782,116880.0,116870.0,0.17719957]
[1758064934218,0.98354782,116880.0,116870.0,0.17719957]
[1758064934441,1.29150613,116880.0,116870.0,0.00606926]
[1758064935117,1.29250613,116880.0,116870.0,0.00606926]
[1758064935355,1.29150613,116880.0,116870.0,0.00606926]
[1758064935634,1.29050613,116880.0,116870.0,0.00606926]
[1758064936586,1.29250613,116880.0,116870.0,0.00606926]
[1758064937008,1.32478803,116880.0,116870.0,0.00289926]
[1758064937218,1.35202803,116880.0,116870.0,0.00289926]
[1758064937941,1.34901803,116880.0,116870.0,0.00289926]
[1758064940255,1.40901803,116880.0,116870.0,0.00289926]
[1758064942703,1.35942038,116880.0,116870.0,0.00289926]
[1758064942908,1.40901803,116880.0,116870.0,0.00289926]
[1758064943235,1.10205972,116880.0,116870.0,0.00289926]
[1758064943426,1.40901803,116880.0,116870.0,0.00289926]
[1758064946230,1.41202803,116880.0,116870.0,0.00086926]
[1758064946467,1.41202673,116880.0,116870.0,0.00086926]
[1758064946598,1.48930281,116880.0,116870.0,0.00086926]
[1758064947797,1.80227719,116880.0,116870.0,0.00086926]
[1758064948008,1.21146237,116880.0,116870.0,0.00086926]
[1758064948442,1.82537899,116880.0,116870.0,0.00086926]
[1758064952429,1.55861899,116880.0,116870.0,0.00086926]
[1758064952610,1.82565899,116880.0,116870.0,0.00086926]
[1758064952834,1.21174237,116880.0,116870.0,0.00086926]
[1758064953011,1.82565899,116880.0,116870.0,0.00086926]
[1758064955435,2.27225899,116880.0,116870.0,0.00086926]
[1758064958066,2.27233899,116880.0,116870.0,0.00086926]
[1758064960750,2.00521899,116880.0,116870.0,0.00086926]
[1758064960967,2.27229899,116880.0,116870.0,0.00086926]
[1758064961594,2.25023924,116880.0,116870.0,0.00086926]
[1758064961798,2.27224203,116880.0,116870.0,0.00086926]
[1758064963121,2.24914023,116880.0,116870.0,0.00086926]
[1758064963545,2.24966023,116880.0,116870.0,0.00086926]
[1758064964413,2.2541307,116880.0,116870.0,0.00086926]
[1758064967945,2.25413433,116880.0,116870.0,0.00086926]
[1758064968553,2.25437433,116880.0,116870.0,0.00086926]
[1758064970412,2.25433433,116880.0,116870.0,0.00086926]
[1758064981882,2.33130847,116880.0,116870.0,0.00086926]
[1758064982764,2.06350847,116880.0,116870.0,0.00086926]
[1758064982973,2.33102847,116880.0,116870.0,0.00086926]
[1758064987224,1.64033771,116880.0,116870.0,0.00086926]
[1758064987452,2.33122847,116880.0,116870.0,0.00086926]
[1758064987660,2.33125584,116880.0,116870.0,0.00086926]
[1758064994099,2.41345584,116880.0,116870.0,0.00086926]
[1758065000558,2.41345769,116880.0,116870.0,0.00086926]
[1758065000971,2.41345839,116880.0,116870.0,0.00086926]
[1758065005938,2.12150839,116880.0,116870.0,0.00086926]
[1758065006230,2.41255839,116880.0,116870.0,0.00298926]
[1758065006445,2.41255839,116880.0,116870.0,0.00086926]
[1758065007186,2.38633839,116880.0,116870.0,0.00298926]
[1758065007677,2.41279839,116880.0,116870.0,0.00086926]
[1758065008845,2.41275839,116880.0,116870.0,0.00086926]
[1758065009312,1.72186763,116880.0,116870.0,0.00086926]
[1758065009536,2.41275839,116880.0,116870.0,0.00086926]
[1758065011011,2.40674848,116880.0,116870.0,0.00086926]
[1758065011216,2.41276197,116880.0,116870.0,0.00086926]
[1758065014184,2.43722032,116880.0,116870.0,0.00086926]
[1758065018985,2.43722039,116880.0,116870.0,0.00086926]
[1758065019398,2.43722965,116880.0,116870.0,0.00086926]
[1758065028952,2.43723198,116880.0,116870.0,0.00086926]
[1758065030568,2.43723856,116880.0,116870.0,0.00086926]
[1758065031433,1.72196945,116880.0,116870.0,0.00086926]
[1758065031634,2.41286021,116880.0,116870.0,0.00086926]
[1758065033219,2.41285997,116880.0,116870.0,0.00086926]
[1758065041482,2.51285997,116880.0,116870.0,0.00086926]
[1758065041881,2.43606849,116880.0,116870.0,0.00086926]
[1758065043480,2.43658849,116880.0,116870.0,0.00086926]
[1758065044892,2.43658887,116880.0,116870.0,0.00086926]
[1758065045316,2.16818887,116880.0,116870.0,0.00086926]
[1758065045514,2.42058647,116880.0,116870.0,0.00086926]
[1758065045776,2.43662895,116880.0,116870.0,0.00086926]
[1758065050525,2.43662919,116880.0,116870.0,0.00086926]
[1758065051113,2.46108754,116880.0,116870.0,0.00086926]
[1758065051733,2.51108754,116880.0,116870.0,0.00086926]
[1758065052377,1.89698826,116880.0,116870.0,0.00086926]
[1758065052596,2.51108754,116880.0,116870.0,0.00086926]
[1758065052802,2.51455751,116880.0,116870.0,0.00086926]
[1758065053340,2.51555751,116880.0,116870.0,0.00086926]
[1758065054042,1.90045823,116880.0,116870.0,0.00086926]
[1758065054218,2.51455751,116880.0,116870.0,0.00086926]
[1758065054438,2.51555751,116880.0,116870.0,0.00086926]
[1758065054868,2.5155553,116880.0,116870.0,0.00086926]
[1758065057909,1.90145602,116880.0,116870.0,0.00086926]
[1758065058116,2.5155553,116880.0,116870.0,0.00086926]
[1758065069061,2.0689553,116880.0,116870.0,0.00086926]
[1758065070543,2.0189553,116880.0,116870.0,0.00086926]
[1758065070734,2.0689553,116880.0,116870.0,0.00086926]
[1758065072115,2.06894282,116880.0,116870.0,0.00086926]
[1758065073141,2.11894282,116880.0,116870.0,0.00086926]
[1758065075930,2.11894262,116880.0,116870.0,0.00086926]
[1758065081701,2.12042262,116880.0,116870.0,0.00086926]
[1758065082305,1.85050262,116880.0,116870.0,0.00086926]
[1758065082536,2.12042262,116880.0,116870.0,0.00086926]
[1758065085073,2.12042846,116880.0,116870.0,0.00086926]
[1758065085294,2.44930846,116880.0,116870.0,0.00086926]
[1758065086208,2.17938846,116880.0,116870.0,0.00086926]
[1758065086419,2.42597846,116880.0,116870.0,0.00086926]
[1758065086639,2.44864846,116880.0,116870.0,0.00086926]
[1758065088940,2.44856846,116880.0,116870.0,0.00086926]
[1758065090158,2.11968847,116880.0,116870.0,0.00086926]
[1758065090382,2.06968847,116880.0,116870.0,0.00086926]
[1758065090604,2.11968847,116880.0,116870.0,0.00086926]
[1758065091705,1.84996847,116880.0,116870.0,0.00086926]
[1758065091926,2.11972847,116880.0,116870.0,0.00086926]
[1758065092768,1.84996847,116880.0,116870.0,0.00086926]
[1758065092987,2.11964847,116880.0,116870.0,0.00086926]
[1758065094852,2.44852847,116880.0,116870.0,0.00086926]
[1758065097800,2.44853114,116880.0,116870.0,0.00086926]
[1758065100491,2.39853114,116880.0,116870.0,0.00086926]
[1758065100708,2.44853114,116880.0,116870.0,0.00086926]
[1758065100922,2.44825188,116880.0,116870.0,0.00086926]
[1758065101146,2.17885188,116880.0,116870.0,0.00086926]
[1758065101357,2.44825188,116880.0,116870.0,0.00086926]
[1758065102005,2.39825188,116880.0,116870.0,0.00086926]
[1758065102229,2.44825188,116880.0,116870.0,0.00086926]
[1758065103911,2.52511788,116880.0,116870.0,0.00086926]
[1758065104265,2.52511863,116880.0,116870.0,0.00086926]
[1758065106346,2.12979863,116880.0,116870.0,0.00293926]
[1758065106544,2.34237838,116880.0,116870.0,0.00600926]
[1758065106773,2.15321028,116880.0,116870.0,0.00600926]
[1758065107075,2.39237838,116880.0,116870.0,0.00600926]
[1758065107294,2.42253028,116880.0,116870.0,0.00600926]
[1758065107668,1.24078655,116880.0,116870.0,0.00600926]
[1758065107868,1.61642109,116880.0,116870.0,0.00600926]
[1758065108070,1.58626919,116880.0,116870.0,0.00600926]
[1758065108513,1.61642109,116880.0,116870.0,0.00600926]
[1758065108729,1.56682344,116880.0,116870.0,0.00600926]
[1758065108930,1.61642109,116880.0,116870.0,0.00600926]
[1758065109129,1.68802574,116880.0,116870.0,0.00600926]
[1758065110485,1.34710109,116880.0,116870.0,0.00600926]
[1758065110680,1.27638109,116880.0,116870.0,0.00600926]
[1758065111060,1.61638109,116880.0,116870.0,0.00600926]
[1758065112157,1.3470958,116880.0,116870.0,0.00600926]
[1758065112445,1.6163758,116880.0,116870.0,0.00600926]
[1758065112694,1.3470958,116880.0,116870.0,0.00600926]
[1758065112885,1.61028535,116880.0,116870.0,0.00600926]
[1758065113583,1.26480271,116880.0,116870.0,0.00600926]
[1758065113781,1.61028535,116880.0,116870.0,0.00600926]
[1758065114257,1.34108535,116880.0,116870.0,0.00600926]
[1758065114475,1.26037274,116880.0,116870.0,0.00600926]
[1758065114940,1.60585538,116880.0,116870.0,0.00600926]
[1758065115199,1.60485538,116880.0,116870.0,0.00600926]
[1758065115965,1.60385538,116880.0,116870.0,0.00600926]
[1758065118373,1.58781738,116880.0,116870.0,0.00600926]
[1758065119222,1.24233474,116880.0,116870.0,0.00600926]
[1758065119452,1.58781738,116880.0,116870.0,0.00600926]
[1758065119577,1.53821973,116880.0,116870.0,0.00600926]
[1758065120002,1.58781738,116880.0,116870.0,0.00600926]
[1758065127381,1.31857738,116880.0,116870.0,0.00600926]
[1758065127626,1.58741738,116880.0,116870.0,0.00600926]
[1758065128942,1.24193474,116880.0,116870.0,0.00600926]
[1758065129147,1.58741738,116880.0,116870.0,0.00600926]
[1758065129979,1.24193474,116880.0,116870.0,0.00600926]
[1758065130136,1.58741738,116880.0,116870.0,0.00600926]
[1758065131140,1.53781973,116880.0,116870.0,0.00600926]
[1758065131463,1.58741738,116880.0,116870.0,0.00600926]
[1758065136272,1.24193474,116880.0,116870.0,0.00600926]
[1758065136689,1.58741738,116880.0,116870.0,0.00600926]
[1758065137323,1.60343289,116880.0,116870.0,0.00600926]
[1758065137968,1.25795025,116880.0,116870.0,0.00600926]
[1758065138411,1.60343289,116880.0,116870.0,0.00600926]
[1758065139781,1.25795025,116880.0,116870.0,0.00600926]
[1758065139980,1.60343289,116880.0,116870.0,0.00600926]
[1758065141304,1.33459289,116880.0,116870.0,0.17713957]
[1758065141545,0.76799458,116880.0,116870.0,0.52262221]
[1758065141783,1.00415458,116880.0,116870.0,0.52262221]
[1758065142203,1.00415458,116880.0,116870.0,0.52272221]
[1758065142793,1.00415458,116880.0,116870.0,0.52372221]
[1758065143301,0.73579458,116880.0,116870.0,0.52372221]
[1758065143495,1.00419458,116880.0,116870.0,0.52372221]
[1758065147698,1.17531025,116880.0,116870.0,0.52372221]
[1758065148164,1.11531025,116880.0,116870.0,0.17823957]
[1758065148580,1.46079289,116880.0,116870.0,0.17823957]
[1758065148986,1.46081582,116880.0,116870.0,0.17823957]
[1758065149191,1.11533318,116880.0,116870.0,0.17823957]
[1758065155109,1.46081582,116880.0,116870.0,0.17823957]
[1758065155520,1.46081422,116880.0,116870.0,0.00710926]
[1758065155969,1.46081422,116880.0,116870.0,0.17823957]
[1758065156205,1.11533158,116880.0,116870.0,0.17823957]
[1758065156411,1.46081422,116880.0,116870.0,0.17823957]
[1758065159045,1.11533158,116880.0,116870.0,0.17823957]
[1758065159422,1.46081422,116880.0,116870.0,0.17823957]
[1758065159777,1.46081422,116880.0,116870.0,0.00710926]
[1758065160122,1.46081422,116880.0,116870.0,0.17823957]
[1758065161471,1.46081422,116880.0,116870.0,0.00710926]
[1758065161600,1.46081422,116880.0,116870.0,0.17823957]
[1758065162795,1.46081422,116880.0,116870.0,0.00710926]
[1758065163759,1.46081422,116880.0,116870.0,0.17823957]
[1758065164368,1.46081422,116880.0,116870.0,0.00710926]
[1758065164586,1.46081422,116880.0,116870.0,0.17823957]
[1758065165178,1.46081422,116880.0,116870.0,0.00710926]
[1758065165929,1.42222754,116880.0,116870.0,0.00710926]
[1758065168031,1.42222754,116880.0,116870.0,0.00196926]
[1758065168244,1.42222754,116880.0,116870.0,0.00409926]
[1758065168502,1.42222754,116880.0,116870.0,0.00702926]
[1758065168653,1.42222874,116880.0,116870.0,0.00702926]
[1758065172200,1.11533278,116880.0,116870.0,0.00702926]
[1758065172424,1.42222874,116880.0,116870.0,0.00702926]
[1758065174866,1.42222877,116880.0,116870.0,0.00702926]
[1758065180040,1.11465281,116880.0,116870.0,0.17815957]
[1758065180209,1.11465281,116880.0,116870.0,0.00702926]
[1758065180603,1.11465281,116880.0,116870.0,0.17815957]
[1758065181033,1.11465281,116880.0,116870.0,0.18215957]
[1758065181450,1.11465281,116880.0,116870.0,0.01102926]
[1758065184403,1.42154877,116880.0,116870.0,0.01102926]
[1758065184604,0.84693281,116880.0,116870.0,0.01102926]
[1758065184808,1.42154877,116880.0,116870.0,0.01102926]
[1758065188402,1.11465281,116880.0,116870.0,0.01102926]
[1758065190510,1.42154877,116880.0,116870.0,0.01102926]
[1758065191936,1.11465281,116880.0,116870.0,0.01102926]
[1758065196619,1.42154877,116880.0,116870.0,0.01102926]
[1758065199293,0.84693281,116880.0,116870.0,0.01102926]
[1758065199527,1.42154877,116880.0,116870.0,0.01102926]
[1758065200901,1.11465281,116880.0,116870.0,0.01102926]
[1758065201108,1.42154877,116880.0,116870.0,0.01102926]
[1758065201566,1.45174877,116880.0,116870.0,0.00809926]
[1758065202187,1.44858877,116880.0,116870.0,0.00809926]
[1758065202936,1.44858827,116880.0,116870.0,0.00809926]
[1758065207559,1.42369827,116880.0,116870.0,0.00809926]
[1758065207884,1.51776179,116880.0,116870.0,0.00596926]
[1758065208298,1.82465775,116880.0,116870.0,0.00586926]
[1758065208501,1.9111592,116880.0,116870.0,0.00586926]
[1758065212773,1.89512163,116880.0,116870.0,0.00586926]
[1758065213050,1.91114056,116880.0,116870.0,0.00586926]